[Event "*** Titled Tuesday Blitz"]
[Site "Chess.com"]
[Date "2020.11.10"]
[Round "3"]
[White "Mambastik-Fantastic"]
[Black "picturesquecheck"]
[Result "0-1"]
[WhiteElo "2289"]
[BlackElo "2113"]
[TimeControl "180+1"]
[EndTime "10:30:48 PST"]
[Termination "picturesquecheck won by resignation"]

1. e4 {[%clk 0:03:00.9]} 1... c5 {[%clk 0:02:56.2]} 2. Nf3 {[%clk 0:02:59.6]}
2... Nc6 {[%clk 0:02:54.7]} 3. d4 {[%clk 0:02:58.9]} 3... cxd4 {[%clk
0:02:55.6]} 4. Nxd4 {[%clk 0:02:58.8]} 4... Nf6 {[%clk 0:02:56.1]} 5. Nc3 {[%clk
0:02:58.3]} 5... d6 {[%clk 0:02:55.5]} 6. Be2 {[%clk 0:02:57.8]} 6... e5 {[%clk
0:02:54.5]} 7. Nf3 {[%clk 0:02:57.3]} 7... Be7 {[%clk 0:02:54.9]} 8. h3 {[%clk
0:02:57.1]} 8... h6 {[%clk 0:02:55.1]} 9. O-O {[%clk 0:02:56.6]} 9... Be6 {[%clk
0:02:55.1]} 10. Re1 {[%clk 0:02:57]} 10... O-O {[%clk 0:02:54.2]} 11. Bf1 {[%clk
0:02:57.2]} 11... Rc8 {[%clk 0:02:52.5]} 12. a4 {[%clk 0:02:57.5]} 12... Re8
{[%clk 0:02:51.7]} 13. Nd5 {[%clk 0:02:56.7]} 13... Bxd5 {[%clk 0:02:39.1]} 14.
exd5 {[%clk 0:02:56.9]} 14... Nb4 {[%clk 0:02:39.2]} 15. c4 {[%clk 0:02:57.2]}
15... a5 {[%clk 0:02:38.1]} 16. b3 {[%clk 0:02:57.4]} 16... Na6 {[%clk
0:02:36.9]} 17. Bb2 {[%clk 0:02:42.4]} 17... Nd7 {[%clk 0:02:36.4]} 18. Rc1
{[%clk 0:02:38.3]} 18... Ndc5 {[%clk 0:02:35.6]} 19. g3 {[%clk 0:02:27.6]} 19...
f5 {[%clk 0:02:32]} 20. Bg2 {[%clk 0:02:21.2]} 20... Rf8 {[%clk 0:02:29.8]} 21.
h4 {[%clk 0:02:04.6]} 21... Qb6 {[%clk 0:02:25.2]} 22. Nd2 {[%clk 0:02:01.9]}
22... Nd3 {[%clk 0:02:21.8]} 23. Qc2 {[%clk 0:01:55.5]} 23... Nxe1 {[%clk
0:02:18.4]} 24. Rxe1 {[%clk 0:01:54.8]} 24... Bf6 {[%clk 0:02:18.9]} 25. Qxf5
{[%clk 0:01:50.3]} 25... Bxh4 {[%clk 0:02:10.8]} 26. Qe6+ {[%clk 0:01:48.8]}
26... Kh8 {[%clk 0:02:10.8]} 27. Ne4 {[%clk 0:01:31.2]} 27... Bxg3 {[%clk
0:02:01.1]} 28. c5 {[%clk 0:01:25.5]} 28... Nxc5 {[%clk 0:01:57.3]} 29. Qg6
{[%clk 0:01:19.8]} 29... Nd3 {[%clk 0:01:43.6]} 30. Qxg3 {[%clk 0:00:47.5]}
30... Nxe1 {[%clk 0:01:33.9]} 31. Bh3 {[%clk 0:00:35.2]} 31... Rce8 {[%clk
0:01:31]} 32. Bc1 {[%clk 0:00:28]} 32... Qd4 {[%clk 0:01:14.6]} 33. Qg6 {[%clk
0:00:25.7]} 33... Nf3+ {[%clk 0:01:04.9]} 34. Kg2 {[%clk 0:00:07.9]} 34... Nh4+
{[%clk 0:01:04.1]} 0-1

[Event "*** Titled Tuesday Blitz"]
[Site "Chess.com"]
[Date "2020.11.10"]
[Round "3"]
[White "Pliukha_Mikhail"]
[Black "Aygehovit1992"]
[Result "0-1"]
[WhiteElo "2481"]
[BlackElo "2673"]
[TimeControl "180+1"]
[EndTime "10:30:49 PST"]
[Termination "Aygehovit1992 won by checkmate"]

1. e4 {[%clk 0:03:00.1]} 1... c5 {[%clk 0:02:59.3]} 2. d4 {[%clk 0:02:59.8]}
2... cxd4 {[%clk 0:02:58.9]} 3. c3 {[%clk 0:03:00.2]} 3... d3 {[%clk 0:02:59.4]}
4. Bxd3 {[%clk 0:03:00.3]} 4... Nc6 {[%clk 0:02:57.5]} 5. Nf3 {[%clk 0:03:00.6]}
5... g6 {[%clk 0:02:55.8]} 6. O-O {[%clk 0:03:00.4]} 6... Bg7 {[%clk 0:02:56.2]}
7. Qe2 {[%clk 0:03:00.7]} 7... d6 {[%clk 0:02:56]} 8. Rd1 {[%clk 0:03:01.1]}
8... Bg4 {[%clk 0:02:56]} 9. h3 {[%clk 0:03:00.7]} 9... Bxf3 {[%clk 0:02:55]}
10. Qxf3 {[%clk 0:03:01.6]} 10... Nf6 {[%clk 0:02:55.1]} 11. Bc2 {[%clk
0:03:00.9]} 11... O-O {[%clk 0:02:55]} 12. Bf4 {[%clk 0:03:01.2]} 12... Qb6
{[%clk 0:02:49.8]} 13. Bb3 {[%clk 0:03:01.4]} 13... a5 {[%clk 0:02:43.5]} 14.
Be3 {[%clk 0:02:53.5]} 14... Qc7 {[%clk 0:02:42.4]} 15. Na3 {[%clk 0:02:53.2]}
15... a4 {[%clk 0:02:39.1]} 16. Bc2 {[%clk 0:02:48.2]} 16... Nd7 {[%clk
0:02:27.3]} 17. Qe2 {[%clk 0:02:39.4]} 17... Ra5 {[%clk 0:02:07.6]} 18. Nc4
{[%clk 0:02:37.3]} 18... Ra6 {[%clk 0:02:01.7]} 19. Rd5 {[%clk 0:02:27.2]} 19...
Rc8 {[%clk 0:01:38.9]} 20. Rad1 {[%clk 0:02:26.7]} 20... Nb4 {[%clk 0:01:12.9]}
21. cxb4 {[%clk 0:02:26.6]} 21... Qxc4 {[%clk 0:01:13.5]} 22. Qxc4 {[%clk
0:02:27.2]} 22... Rxc4 {[%clk 0:01:14.4]} 23. Bd3 {[%clk 0:02:27.9]} 23... Rxb4
{[%clk 0:01:14.5]} 24. Bxa6 {[%clk 0:02:28.1]} 24... bxa6 {[%clk 0:01:15.4]} 25.
Bd4 {[%clk 0:02:25.1]} 25... Nf6 {[%clk 0:01:07.4]} 26. Ra5 {[%clk 0:02:21.5]}
26... Nxe4 {[%clk 0:01:02.5]} 27. Bxg7 {[%clk 0:02:21.9]} 27... Kxg7 {[%clk
0:01:03.4]} 28. Rxa6 {[%clk 0:02:21.1]} 28... Rxb2 {[%clk 0:00:59.1]} 29. Rxa4
{[%clk 0:02:15.8]} 29... Nc3 {[%clk 0:00:56.2]} 30. Rdd4 {[%clk 0:02:13.1]}
30... Ne2+ {[%clk 0:00:54.2]} 31. Kf1 {[%clk 0:02:10.6]} 31... Nxd4 {[%clk
0:00:55.1]} 32. Rxd4 {[%clk 0:02:10.9]} 32... Rxa2 {[%clk 0:00:55.4]} 33. Kg1
{[%clk 0:02:08.9]} 33... f5 {[%clk 0:00:55.2]} 34. Rb4 {[%clk 0:02:06.9]} 34...
Kf6 {[%clk 0:00:55.1]} 35. Rb7 {[%clk 0:02:07.5]} 35... h5 {[%clk 0:00:55.1]}
36. Rd7 {[%clk 0:02:07.6]} 36... h4 {[%clk 0:00:54.2]} 37. Rd8 {[%clk
0:02:07.4]} 37... Rd2 {[%clk 0:00:52.1]} 38. Rh8 {[%clk 0:02:07]} 38... g5
{[%clk 0:00:51]} 39. Rh6+ {[%clk 0:02:07.5]} 39... Kf7 {[%clk 0:00:51.2]} 40.
Rh5 {[%clk 0:02:07.3]} 40... Kg6 {[%clk 0:00:50.9]} 41. Rh8 {[%clk 0:02:08.1]}
41... e5 {[%clk 0:00:51.2]} 42. Rg8+ {[%clk 0:02:07.2]} 42... Kf6 {[%clk
0:00:51.1]} 43. Rf8+ {[%clk 0:02:07.7]} 43... Ke6 {[%clk 0:00:51.6]} 44. Rg8
{[%clk 0:02:07.8]} 44... d5 {[%clk 0:00:50.7]} 45. Rxg5 {[%clk 0:02:08.2]} 45...
d4 {[%clk 0:00:51.3]} 46. Kf1 {[%clk 0:02:02.4]} 46... d3 {[%clk 0:00:50.3]} 47.
Ke1 {[%clk 0:02:02.7]} 47... Re2+ {[%clk 0:00:50.5]} 48. Kf1 {[%clk 0:02:02.8]}
48... Ra2 {[%clk 0:00:47.6]} 49. Ke1 {[%clk 0:02:03.2]} 49... e4 {[%clk
0:00:47.9]} 50. Rg8 {[%clk 0:02:01.1]} 50... Ra1+ {[%clk 0:00:43.6]} 51. Kd2
{[%clk 0:02:01.1]} 51... Rf1 {[%clk 0:00:43.9]} 52. Ke3 {[%clk 0:02:00.1]} 52...
Re1+ {[%clk 0:00:44.2]} 53. Kd2 {[%clk 0:01:57.8]} 53... Re2+ {[%clk 0:00:44.4]}
54. Kd1 {[%clk 0:01:57.9]} 54... Rxf2 {[%clk 0:00:44.7]} 55. g4 {[%clk
0:01:53.8]} 55... hxg3 {[%clk 0:00:44.5]} 56. Rxg3 {[%clk 0:01:53.5]} 56... f4
{[%clk 0:00:44.9]} 57. Rg5 {[%clk 0:01:51.6]} 57... e3 {[%clk 0:00:44.8]} 58.
Ke1 {[%clk 0:01:51.9]} 58... d2+ {[%clk 0:00:44.9]} 59. Kd1 {[%clk 0:01:51.9]}
59... Rf1+ {[%clk 0:00:45.8]} 60. Kc2 {[%clk 0:01:52.8]} 60... d1=Q+ {[%clk
0:00:46.7]} 61. Kc3 {[%clk 0:01:53.7]} 61... Qd2+ {[%clk 0:00:46.2]} 62. Kb3
{[%clk 0:01:54.3]} 62... Rb1+ {[%clk 0:00:46.1]} 63. Kc4 {[%clk 0:01:52.5]}
63... Rb4+ {[%clk 0:00:46]} 64. Kc5 {[%clk 0:01:53]} 64... Qd6# {[%clk
0:00:45.7]} 0-1

[Event "*** Titled Tuesday Blitz"]
[Site "Chess.com"]
[Date "2020.11.10"]
[Round "3"]
[White "ukchessbomber"]
[Black "zverr1"]
[Result "1-0"]
[WhiteElo "2247"]
[BlackElo "2400"]
[TimeControl "180+1"]
[EndTime "10:30:51 PST"]
[Termination "ukchessbomber won by checkmate"]

1. d4 {[%clk 0:03:00.9]} 1... Nf6 {[%clk 0:03:00.2]} 2. c4 {[%clk 0:03:01.1]}
2... c5 {[%clk 0:02:59.5]} 3. d5 {[%clk 0:03:01.2]} 3... b5 {[%clk 0:03:00]} 4.
cxb5 {[%clk 0:03:02.1]} 4... a6 {[%clk 0:03:00.4]} 5. bxa6 {[%clk 0:03:01.9]}
5... g6 {[%clk 0:03:00.8]} 6. Nc3 {[%clk 0:03:02.2]} 6... Bg7 {[%clk 0:03:01.3]}
7. e4 {[%clk 0:03:02.5]} 7... O-O {[%clk 0:03:01.8]} 8. e5 {[%clk 0:02:58.2]}
8... Ne8 {[%clk 0:02:58.7]} 9. Nf3 {[%clk 0:02:58.1]} 9... Qa5 {[%clk
0:02:52.7]} 10. Be2 {[%clk 0:02:50.6]} 10... Bxa6 {[%clk 0:02:53]} 11. O-O
{[%clk 0:02:51.1]} 11... d6 {[%clk 0:02:47.5]} 12. e6 {[%clk 0:02:36.1]} 12...
f6 {[%clk 0:02:37.1]} 13. Bd2 {[%clk 0:02:29.4]} 13... Bxe2 {[%clk 0:02:35.8]}
14. Qxe2 {[%clk 0:02:30.3]} 14... Qa6 {[%clk 0:02:36.1]} 15. Qxa6 {[%clk
0:02:27.5]} 15... Nxa6 {[%clk 0:02:37]} 16. a3 {[%clk 0:02:24.7]} 16... f5
{[%clk 0:02:35.3]} 17. Rab1 {[%clk 0:02:19.5]} 17... c4 {[%clk 0:02:34.6]} 18.
b3 {[%clk 0:02:18]} 18... Nc5 {[%clk 0:02:32.9]} 19. bxc4 {[%clk 0:02:16]} 19...
Rxa3 {[%clk 0:02:32.8]} 20. Nb5 {[%clk 0:02:15.5]} 20... Ra4 {[%clk 0:02:27.1]}
21. Rfc1 {[%clk 0:02:12]} 21... Nf6 {[%clk 0:02:23.7]} 22. Nbd4 {[%clk 0:02:00]}
22... Nce4 {[%clk 0:02:20.9]} 23. Nc6 {[%clk 0:01:58.3]} 23... Re8 {[%clk
0:02:15.4]} 24. Rb7 {[%clk 0:01:21.5]} 24... Bf8 {[%clk 0:02:14.1]} 25. Be3
{[%clk 0:01:13.7]} 25... Ng4 {[%clk 0:02:04.5]} 26. Bd4 {[%clk 0:01:12.9]} 26...
Ra2 {[%clk 0:01:56]} 27. h3 {[%clk 0:00:56]} 27... Ngxf2 {[%clk 0:01:52.3]} 28.
Nb4 {[%clk 0:00:55.6]} 28... Re2 {[%clk 0:01:38.7]} 29. Kf1 {[%clk 0:00:55.2]}
29... Ng3+ {[%clk 0:01:37]} 30. Kg1 {[%clk 0:00:55.5]} 30... Nfe4 {[%clk
0:01:33.8]} 31. Kh2 {[%clk 0:00:27.2]} 31... Bh6 {[%clk 0:01:29.1]} 32. Ra1
{[%clk 0:00:26.6]} 32... Bf4 {[%clk 0:01:29]} 33. Kg1 {[%clk 0:00:26.7]} 33...
g5 {[%clk 0:01:20.3]} 34. Nc6 {[%clk 0:00:20.6]} 34... Kf8 {[%clk 0:01:18.6]}
35. Nxe7 {[%clk 0:00:16.3]} 35... g4 {[%clk 0:01:16.3]} 36. hxg4 {[%clk
0:00:13.5]} 36... fxg4 {[%clk 0:01:17.2]} 37. Nh4 {[%clk 0:00:14]} 37... Rxe7
{[%clk 0:01:15.5]} 38. Ra8+ {[%clk 0:00:12.9]} 38... Re8 {[%clk 0:01:12.5]} 39.
Bg7+ {[%clk 0:00:13.3]} 39... Kg8 {[%clk 0:01:13.1]} 40. Rxe8# {[%clk
0:00:13.7]} 1-0

[Event "*** Titled Tuesday Blitz"]
[Site "Chess.com"]
[Date "2020.11.10"]
[Round "3"]
[White "MaxLeto"]
[Black "NikolaGry"]
[Result "0-1"]
[WhiteElo "2403"]
[BlackElo "2625"]
[TimeControl "180+1"]
[EndTime "10:30:52 PST"]
[Termination "NikolaGry won by resignation"]

1. g4 {[%clk 0:02:27.7]} 1... d5 {[%clk 0:02:59.6]} 2. Bg2 {[%clk 0:02:23.6]}
2... c6 {[%clk 0:02:59.8]} 3. g5 {[%clk 0:02:22.6]} 3... e5 {[%clk 0:02:57.9]}
4. d4 {[%clk 0:02:22.7]} 4... exd4 {[%clk 0:02:47.5]} 5. Qxd4 {[%clk 0:02:23.6]}
5... Qb6 {[%clk 0:02:42.9]} 6. Nf3 {[%clk 0:02:16.4]} 6... Qxd4 {[%clk
0:02:21.2]} 7. Nxd4 {[%clk 0:02:17.3]} 7... Bc5 {[%clk 0:02:20.4]} 8. Nb3 {[%clk
0:02:07.1]} 8... Bb6 {[%clk 0:02:20.2]} 9. Nc3 {[%clk 0:02:05]} 9... Bf5 {[%clk
0:02:19]} 10. e4 {[%clk 0:01:53.4]} 10... dxe4 {[%clk 0:02:18.3]} 11. Nxe4
{[%clk 0:01:54.3]} 11... Bxe4 {[%clk 0:02:17.8]} 12. Bxe4 {[%clk 0:01:53.6]}
12... Ne7 {[%clk 0:02:17.4]} 13. Bf4 {[%clk 0:01:48.2]} 13... Nd7 {[%clk
0:02:05.8]} 14. Bg3 {[%clk 0:01:44.7]} 14... O-O-O {[%clk 0:01:54.4]} 15. O-O-O
{[%clk 0:01:44.5]} 15... f5 {[%clk 0:01:51]} 16. gxf6 {[%clk 0:01:29.9]} 16...
Nxf6 {[%clk 0:01:49.6]} 17. Bg2 {[%clk 0:01:27.4]} 17... Nf5 {[%clk 0:01:27]}
18. Bh3 {[%clk 0:01:18.7]} 18... g6 {[%clk 0:01:27]} 19. Be5 {[%clk 0:01:19.2]}
19... Rhf8 {[%clk 0:01:23.1]} 20. Rxd8+ {[%clk 0:01:16.2]} 20... Bxd8 {[%clk
0:01:20.9]} 21. Nd4 {[%clk 0:01:01.4]} 21... Nd7 {[%clk 0:01:09.2]} 22. Bf6
{[%clk 0:01:01.8]} 22... Rxf6 {[%clk 0:01:04.2]} 23. Rd1 {[%clk 0:00:21.4]}
23... Nxd4 {[%clk 0:00:58.3]} 24. Rxd4 {[%clk 0:00:22.3]} 24... Rf7 {[%clk
0:00:58.4]} 25. c4 {[%clk 0:00:18.3]} 25... Bb6 {[%clk 0:00:55.6]} 26. Rd2
{[%clk 0:00:16.3]} 26... Kc7 {[%clk 0:00:54.5]} 27. b4 {[%clk 0:00:07.6]} 27...
Bxf2 {[%clk 0:00:52.4]} 28. Bxd7 {[%clk 0:00:05.8]} 28... Be3 {[%clk 0:00:52.5]}
29. Be6 {[%clk 0:00:05.8]} 29... Rf2 {[%clk 0:00:50.9]} 0-1

[Event "*** Titled Tuesday Blitz"]
[Site "Chess.com"]
[Date "2020.11.10"]
[Round "3"]
[White "Margarita2907"]
[Black "Das_Virus_2020"]
[Result "0-1"]
[WhiteElo "2231"]
[BlackElo "2414"]
[TimeControl "180+1"]
[EndTime "10:30:53 PST"]
[Termination "Das_Virus_2020 won by resignation"]

1. e4 {[%clk 0:03:00.9]} 1... e6 {[%clk 0:02:59.6]} 2. d4 {[%clk 0:03:00.2]}
2... d5 {[%clk 0:02:59.4]} 3. Nd2 {[%clk 0:02:59]} 3... Nf6 {[%clk 0:02:58.8]}
4. e5 {[%clk 0:02:56.6]} 4... Nfd7 {[%clk 0:02:58.8]} 5. Bd3 {[%clk 0:02:46.6]}
5... c5 {[%clk 0:02:58.5]} 6. c3 {[%clk 0:02:45.7]} 6... Nc6 {[%clk 0:02:57.9]}
7. Ne2 {[%clk 0:02:44.9]} 7... cxd4 {[%clk 0:02:57.9]} 8. cxd4 {[%clk
0:02:44.1]} 8... f6 {[%clk 0:02:57.9]} 9. exf6 {[%clk 0:02:42.8]} 9... Nxf6
{[%clk 0:02:58.8]} 10. O-O {[%clk 0:02:37]} 10... Bd6 {[%clk 0:02:59.2]} 11. Nf3
{[%clk 0:02:33.9]} 11... O-O {[%clk 0:02:58.8]} 12. Bg5 {[%clk 0:02:25.8]} 12...
Qc7 {[%clk 0:02:47.2]} 13. h3 {[%clk 0:02:20.1]} 13... h6 {[%clk 0:02:33.6]} 14.
Bh4 {[%clk 0:02:15]} 14... Nh5 {[%clk 0:02:31.7]} 15. Bg6 {[%clk 0:02:03.6]}
15... Nf4 {[%clk 0:02:30.2]} 16. Nxf4 {[%clk 0:01:56.5]} 16... Bxf4 {[%clk
0:02:29.8]} 17. Qd3 {[%clk 0:01:48.8]} 17... Ne7 {[%clk 0:02:04.6]} 18. Bxe7
{[%clk 0:01:38.9]} 18... Qxe7 {[%clk 0:02:04.1]} 19. Ne5 {[%clk 0:01:31.8]}
19... Bxe5 {[%clk 0:01:59.3]} 20. dxe5 {[%clk 0:01:32.7]} 20... Bd7 {[%clk
0:01:58.6]} 21. Rac1 {[%clk 0:01:23.2]} 21... Rac8 {[%clk 0:01:55.8]} 22. Rc3
{[%clk 0:01:15.4]} 22... Rxc3 {[%clk 0:01:46.7]} 23. Qxc3 {[%clk 0:01:16.3]}
23... Rc8 {[%clk 0:01:37.8]} 24. Qe3 {[%clk 0:01:12.3]} 24... Qc5 {[%clk
0:01:24]} 25. Qg3 {[%clk 0:00:59.7]} 25... Be8 {[%clk 0:01:03.2]} 26. Bb1 {[%clk
0:00:39.9]} 26... Qd4 {[%clk 0:00:51.6]} 27. b3 {[%clk 0:00:35.1]} 27... Rc3
{[%clk 0:00:43.4]} 28. Qh2 {[%clk 0:00:34.4]} 28... Bb5 {[%clk 0:00:39.3]} 29.
Re1 {[%clk 0:00:26.6]} 29... Qd2 {[%clk 0:00:38]} 0-1

[Event "*** Titled Tuesday Blitz"]
[Site "Chess.com"]
[Date "2020.11.10"]
[Round "3"]
[White "GOGIEFF"]
[Black "VladimirPotkin"]
[Result "1-0"]
[WhiteElo "2891"]
[BlackElo "2641"]
[TimeControl "180+1"]
[EndTime "10:30:55 PST"]
[Termination "GOGIEFF won by resignation"]

1. d4 {[%clk 0:03:00.9]} 1... Nf6 {[%clk 0:02:58.3]} 2. c4 {[%clk 0:03:01.1]}
2... e6 {[%clk 0:02:58.7]} 3. Nf3 {[%clk 0:02:58.6]} 3... d5 {[%clk 0:02:57.7]}
4. Nc3 {[%clk 0:02:58.7]} 4... c6 {[%clk 0:02:52.4]} 5. e3 {[%clk 0:02:54.5]}
5... Nbd7 {[%clk 0:02:52.1]} 6. Qc2 {[%clk 0:02:53.8]} 6... Bd6 {[%clk
0:02:51.6]} 7. b3 {[%clk 0:02:48.5]} 7... O-O {[%clk 0:02:51.1]} 8. Be2 {[%clk
0:02:48.1]} 8... Qe7 {[%clk 0:02:51.1]} 9. Bb2 {[%clk 0:02:47.7]} 9... b6 {[%clk
0:02:51.1]} 10. O-O {[%clk 0:02:46]} 10... Bb7 {[%clk 0:02:51.6]} 11. Rad1
{[%clk 0:02:45.6]} 11... Rfe8 {[%clk 0:02:49.4]} 12. Rfe1 {[%clk 0:02:44.2]}
12... Bb4 {[%clk 0:02:44.9]} 13. Bd3 {[%clk 0:02:23.7]} 13... h6 {[%clk
0:02:38.3]} 14. e4 {[%clk 0:02:16.1]} 14... dxe4 {[%clk 0:02:29.3]} 15. Bxe4
{[%clk 0:02:17]} 15... Nxe4 {[%clk 0:02:29.6]} 16. Rxe4 {[%clk 0:02:17.6]} 16...
Rad8 {[%clk 0:02:08.6]} 17. Qc1 {[%clk 0:02:08.6]} 17... Nf6 {[%clk 0:02:08.3]}
18. Re2 {[%clk 0:02:01.8]} 18... Qc7 {[%clk 0:02:08.2]} 19. Ne5 {[%clk 0:01:49]}
19... Bf8 {[%clk 0:01:55.2]} 20. Rd3 {[%clk 0:01:18.4]} 20... c5 {[%clk
0:01:47.2]} 21. Rg3 {[%clk 0:01:09.3]} 21... cxd4 {[%clk 0:01:05.4]} 22. Nb5
{[%clk 0:01:08.7]} 22... Qb8 {[%clk 0:01:05.6]} 23. Qxh6 {[%clk 0:01:04.7]}
23... Ne4 {[%clk 0:00:58.9]} 24. Qh5 {[%clk 0:01:03.8]} 24... g6 {[%clk
0:00:38.6]} 25. Nxg6 {[%clk 0:00:51.6]} 25... Bg7 {[%clk 0:00:39]} 26. Rg4
{[%clk 0:00:44]} 26... Nf6 {[%clk 0:00:38.8]} 27. Ne7+ {[%clk 0:00:42.9]} 27...
Rxe7 {[%clk 0:00:38.3]} 28. Rxg7+ {[%clk 0:00:43.3]} 28... Kxg7 {[%clk
0:00:37.4]} 29. Qg5+ {[%clk 0:00:43.9]} 29... Kf8 {[%clk 0:00:33.2]} 30. Qxf6
{[%clk 0:00:44]} 30... Red7 {[%clk 0:00:33.6]} 31. Ba3+ {[%clk 0:00:41.5]} 31...
Kg8 {[%clk 0:00:33.8]} 32. Re5 {[%clk 0:00:40.6]} 1-0

[Event "*** Titled Tuesday Blitz"]
[Site "Chess.com"]
[Date "2020.11.10"]
[Round "3"]
[White "QuintilianoR"]
[Black "wonderfultime"]
[Result "0-1"]
[WhiteElo "2693"]
[BlackElo "2955"]
[TimeControl "180+1"]
[EndTime "10:30:57 PST"]
[Termination "wonderfultime won by resignation"]

1. Nf3 {[%clk 0:03:00.9]} 1... Nf6 {[%clk 0:02:59.6]} 2. c4 {[%clk 0:03:00.6]}
2... c6 {[%clk 0:02:59.9]} 3. d4 {[%clk 0:02:59.4]} 3... d5 {[%clk 0:02:59.3]}
4. e3 {[%clk 0:02:59.9]} 4... Bf5 {[%clk 0:02:56.1]} 5. Nc3 {[%clk 0:03:00.1]}
5... e6 {[%clk 0:02:56]} 6. Nh4 {[%clk 0:02:59.8]} 6... Be4 {[%clk 0:02:56]} 7.
f3 {[%clk 0:02:59.7]} 7... Bg6 {[%clk 0:02:55.9]} 8. Qb3 {[%clk 0:02:57.1]} 8...
Qc7 {[%clk 0:02:54.1]} 9. Bd2 {[%clk 0:02:55.5]} 9... Be7 {[%clk 0:02:53.8]} 10.
Nxg6 {[%clk 0:02:39]} 10... hxg6 {[%clk 0:02:54.7]} 11. O-O-O {[%clk 0:02:38.6]}
11... dxc4 {[%clk 0:02:49.1]} 12. Bxc4 {[%clk 0:02:39.5]} 12... b5 {[%clk
0:02:49.7]} 13. Be2 {[%clk 0:02:39]} 13... a6 {[%clk 0:02:50]} 14. Ne4 {[%clk
0:02:32.5]} 14... Nxe4 {[%clk 0:02:48.9]} 15. fxe4 {[%clk 0:02:33.4]} 15... c5
{[%clk 0:02:49.5]} 16. Kb1 {[%clk 0:02:33.4]} 16... Nc6 {[%clk 0:02:23.3]} 17.
e5 {[%clk 0:02:26.6]} 17... Rd8 {[%clk 0:02:14.8]} 18. Bf3 {[%clk 0:02:20.8]}
18... O-O {[%clk 0:02:03.5]} 19. h4 {[%clk 0:02:09.6]} 19... Qb6 {[%clk
0:01:56.9]} 20. Qc2 {[%clk 0:01:40.8]} 20... Rc8 {[%clk 0:01:46.4]} 21. h5
{[%clk 0:01:13.3]} 21... g5 {[%clk 0:01:46.7]} 22. h6 {[%clk 0:01:05.5]} 22...
g6 {[%clk 0:01:47]} 23. d5 {[%clk 0:00:33.5]} 23... Nxe5 {[%clk 0:01:05.8]} 24.
Bc3 {[%clk 0:00:31.5]} 24... Bf6 {[%clk 0:01:06.4]} 25. Qe4 {[%clk 0:00:24.4]}
25... Qd6 {[%clk 0:00:51.8]} 26. dxe6 {[%clk 0:00:12.7]} 26... Qxe6 {[%clk
0:00:52.7]} 27. Rd5 {[%clk 0:00:11.5]} 27... Nxf3 {[%clk 0:00:42.9]} 28. Bxf6
{[%clk 0:00:09.1]} 28... Qxe4+ {[%clk 0:00:42.3]} 0-1

[Event "*** Titled Tuesday Blitz"]
[Site "Chess.com"]
[Date "2020.11.10"]
[Round "3"]
[White "fm_magua"]
[Black "Smile2005"]
[Result "1/2-1/2"]
[WhiteElo "2580"]
[BlackElo "2394"]
[TimeControl "180+1"]
[EndTime "10:30:59 PST"]
[Termination "Game drawn by agreement"]

1. e4 {[%clk 0:03:00.9]} 1... d5 {[%clk 0:02:49.9]} 2. exd5 {[%clk 0:03:00.3]}
2... Nf6 {[%clk 0:02:49.6]} 3. d4 {[%clk 0:02:59.9]} 3... Nxd5 {[%clk
0:02:50.1]} 4. c4 {[%clk 0:02:59]} 4... Nb6 {[%clk 0:02:50.3]} 5. Nf3 {[%clk
0:02:59]} 5... Bg4 {[%clk 0:02:50.2]} 6. c5 {[%clk 0:02:59]} 6... N6d7 {[%clk
0:02:50.1]} 7. Bc4 {[%clk 0:02:59.5]} 7... e6 {[%clk 0:02:50.2]} 8. O-O {[%clk
0:02:58.1]} 8... Nc6 {[%clk 0:02:50.1]} 9. Be3 {[%clk 0:02:52.6]} 9... Be7
{[%clk 0:02:49.9]} 10. Nc3 {[%clk 0:02:52.9]} 10... O-O {[%clk 0:02:50]} 11. h3
{[%clk 0:02:51.1]} 11... Bh5 {[%clk 0:02:49.7]} 12. a3 {[%clk 0:02:50.4]} 12...
Bf6 {[%clk 0:02:49.3]} 13. Re1 {[%clk 0:02:47.9]} 13... Be7 {[%clk 0:02:48.1]}
14. b4 {[%clk 0:02:47.2]} 14... a6 {[%clk 0:02:48.4]} 15. d5 {[%clk 0:02:44.8]}
15... exd5 {[%clk 0:02:48.1]} 16. Nxd5 {[%clk 0:02:42.6]} 16... Nf6 {[%clk
0:02:44.5]} 17. Nxe7+ {[%clk 0:02:41.1]} 17... Nxe7 {[%clk 0:02:45.4]} 18. Qb3
{[%clk 0:02:40.2]} 18... Bxf3 {[%clk 0:02:43.6]} 19. gxf3 {[%clk 0:02:40.1]}
19... Ng6 {[%clk 0:02:37]} 20. Rad1 {[%clk 0:02:39.9]} 20... Qc8 {[%clk
0:02:37.1]} 21. Kh2 {[%clk 0:02:39.5]} 21... Ne5 {[%clk 0:02:35.9]} 22. Bd4
{[%clk 0:02:37.9]} 22... Nxc4 {[%clk 0:02:34.9]} 23. Bxf6 {[%clk 0:02:37.4]}
23... gxf6 {[%clk 0:02:02.4]} 24. Rg1+ {[%clk 0:02:36.4]} 24... Kh8 {[%clk
0:02:01.7]} 25. Qxc4 {[%clk 0:02:36.6]} 25... Qf5 {[%clk 0:02:01.3]} 26. Qg4
{[%clk 0:02:24.2]} 26... Qxg4 {[%clk 0:01:58.8]} 27. fxg4 {[%clk 0:02:24.3]}
27... Rad8 {[%clk 0:01:58]} 28. Rge1 {[%clk 0:02:15.3]} 28... Kg7 {[%clk
0:01:56.2]} 29. Kg3 {[%clk 0:02:14.8]} 29... Rfe8 {[%clk 0:01:44.3]} 30. Kf4
{[%clk 0:02:13.2]} 30... Rxd1 {[%clk 0:01:40.7]} 31. Rxd1 {[%clk 0:02:11.6]}
31... Re2 {[%clk 0:01:40]} 32. f3 {[%clk 0:02:07.8]} 32... Ra2 {[%clk
0:01:39.6]} 33. Rd7 {[%clk 0:02:06.1]} 33... Rxa3 {[%clk 0:01:39.1]} 34. Rxc7
{[%clk 0:02:06.5]} 34... a5 {[%clk 0:01:29.3]} 35. Rxb7 {[%clk 0:02:05.3]} 35...
Ra4 {[%clk 0:01:21.3]} 36. c6 {[%clk 0:02:04.9]} 36... axb4 {[%clk 0:01:18.7]}
37. c7 {[%clk 0:02:03.1]} 37... b3+ {[%clk 0:01:18.7]} 38. Ke3 {[%clk
0:01:58.3]} 38... Rc4 {[%clk 0:01:18.7]} 39. Kd3 {[%clk 0:01:58.7]} 39... Rc6
{[%clk 0:01:18.4]} 40. Kd4 {[%clk 0:01:58]} 40... b2 {[%clk 0:01:17.9]} 41. Kd5
{[%clk 0:01:57.6]} 41... Rc1 {[%clk 0:01:17.8]} 42. Kd6 {[%clk 0:01:52]} 42...
Rd1+ {[%clk 0:01:16.8]} 43. Ke7 {[%clk 0:01:52.2]} 43... Rc1 {[%clk 0:01:16.5]}
44. Kd8 {[%clk 0:01:51]} 44... Rd1+ {[%clk 0:01:15.2]} 45. Ke8 {[%clk
0:01:50.4]} 45... Rc1 {[%clk 0:01:15.2]} 46. Kd7 {[%clk 0:01:50.7]} 46... Rd1+
{[%clk 0:01:15.3]} 47. Kc6 {[%clk 0:01:50.9]} 47... Rc1+ {[%clk 0:01:15.5]} 48.
Kd6 {[%clk 0:01:51.3]} 48... Rd1+ {[%clk 0:01:14.4]} 49. Kc6 {[%clk 0:01:50.7]}
49... Rc1+ {[%clk 0:01:14.6]} 50. Kd5 {[%clk 0:01:46.7]} 50... Rxc7 {[%clk
0:01:09.8]} 51. Rxb2 {[%clk 0:01:45.8]} 51... Rc3 {[%clk 0:01:09.8]} 52. Ke4
{[%clk 0:01:38.8]} 52... Rc1 {[%clk 0:01:09.1]} 53. h4 {[%clk 0:01:38.6]} 53...
h5 {[%clk 0:01:07.5]} 54. gxh5 {[%clk 0:01:36.8]} 54... Rh1 {[%clk 0:01:07.3]}
55. Kf5 {[%clk 0:01:36.5]} 55... Rxh4 {[%clk 0:01:06.3]} 56. Rg2+ {[%clk
0:01:36.5]} 56... Kf8 {[%clk 0:00:58.1]} 57. Kxf6 {[%clk 0:01:34.3]} 57... Rxh5
{[%clk 0:00:57.7]} 58. f4 {[%clk 0:01:33.1]} 58... Rh6+ {[%clk 0:00:55.8]} 59.
Ke5 {[%clk 0:01:33.2]} 59... Re6+ {[%clk 0:00:55.9]} 60. Kd5 {[%clk 0:01:29.9]}
60... Rf6 {[%clk 0:00:49.2]} 1/2-1/2